[Event "French-ch Youth U18 2022"]
[Site "Agen"]
[Date "2022.04.22"]
[Round "7.5"]
[White "Blanquet, Camille"]
[Black "Courjal, Pauline"]
[Result "1-0"]
[ECO "D30"]
[WhiteElo "1928"]
[BlackElo "1976"]
[Annotator "TA"]
[PlyCount "121"]
[EventDate "2022.04.17"]
[EventType "swiss"]
[EventCountry "FRA"]
[SourceTitle "playchess.com"]
[Source "ChessBase"]
[SourceQuality "1"]
[TimeControl "5400+30"]

{[%evp 16,121,36,33,24,36,50,52,65,14,18,0,0,0,5,10,40,37,29,28,33,35,89,-25,-26,-42,-33,-37,-15,-25,-25,-26,-21,-18,-18,-18,-23,-42,-10,-27,0,0,0,-8,-4,-10,0,-74,-74,-74,-74,-99,-101,-108,-81,-81,-81,-81,-81,-81,-81,-81,-81,-81,-81,-81,-73,-74,-73,-73,0,-81,-8,-146,-158,-177,-145,-129,-95,-180,0,-6,0,-77,-80,-88,0,0,0,-29987,0,0,0,0,0,0,0,0,0,0,0,0,0,0,0,0,0,0]} 1. d4 {[%emt 0:00:04]} d5 {[%emt 0:00:14]} 2. c4 {[%emt 0:00:20]} e6 {[%emt 0:00:06]} 3. Nf3 {[%emt 0:01:34]} c5 {[%emt 0:00:10]} 4. cxd5 {[%emt 0:01:35]} exd5 {[%emt 0:00:09]} 5. g3 {[%emt 0:00:15]} Nc6 {[%emt 0:00:33]} 6. Bg2 {[%emt 0:00:22]} Nf6 {[%emt 0:00:11]} 7. O-O {[%emt 0:00:27]} Be7 {[%emt 0:01:55]} 8. dxc5 {[%emt 0:00:13]} Bxc5 {[%emt 0:00:52]} 9. a3 {[%emt 0:00:18]} Ne4 {[%emt 0:01:54] D30: Queen's Gambit Declined: Systems without Nc3.} 10. Nfd2 {[%emt 0:01:08]} Bf5 {[%emt 0:25:22]} 11. Nxe4 {[%emt 0:03:49]} dxe4 {[%emt 0:02:24] [#] White is slightly better.} 12. Qc2 $146 {[%emt 0:06:24]} (12. Bf4 $14) ({Predecessor:} 12. Qa4 Qe7 13. Nc3 Bd4 14. Bf4 O-O 15. Nd5 Qc5 16. Ne3 Bg6 17. b4 Qe7 18. Rad1 {1-0 (28) Goldie,T (2193)-Golding,J (1919) Prague 2016}) 12... Qe7 $1 $11 {[%emt 0:00:31]} 13. Nc3 {[%emt 0:01:27][%cal Rc3e4]} Nd4 {[%emt 0:06:23]} 14. Qa4+ {[%emt 0:09:59]} Bd7 {[%emt 0:00:15]} 15. Qd1 {[%emt 0:00:37] aiming for Be3.} Bc6 {[%emt 0:01:13]} 16. b4 {[%emt 0:02:46]} Bb6 {[%emt 0:00:40]} 17. Be3 {[%emt 0:03:03]} Rd8 {[%emt 0:15:07][%cal Od4f3]} 18. Qb1 $1 {[%emt 0:00:59]} Qe5 {[%emt 0:09:07] Prevents b5.} (18... O-O $14) 19. b5 {[%emt 0:19:46]} ({White should play} 19. a4 $1 $16 {[%cal Ra4a5]}) 19... Nxb5 {[%emt 0:13:15]} 20. Nxb5 {[%emt 0:01:48]} Bxe3 {[%emt 0:00:07]} ({Don't do} 20... Bxb5 21. Bxb6 axb6 22. Bxe4 $16) ({Resist} 20... Qxb5 21. Qxb5 Bxb5 22. Bxb6 axb6 23. Bxe4 $14) 21. fxe3 {[%emt 0:03:34]} Qxb5 {[%emt 0:00:53]} 22. Bxe4 {[%emt 0:04:33]} Qe5 {[%emt 0:08:32]} (22... Qxe2 $2 23. Bxc6+ bxc6 24. Qe4+ Kf8 25. Rab1 $18) 23. Bxc6+ {[%emt 0:07:28]} bxc6 {[%emt 0:00:04]} 24. Qb3 {[%emt 0:00:34][%csl Gf1][%cal Rb3f7]} O-O {[%emt 0:00:14]} 25. Rac1 {[%emt 0:02:09]} Rd6 {[%emt 0:02:38]} 26. Qc3 {[%emt 0:06:06]} Qe6 {[%emt 0:02:09]} 27. Rf4 {[%emt 0:04:23]} h5 {[%emt 0:01:43]} 28. Qc5 {[%emt 0:02:23][%csl LRa7,LRh5]} a6 {[%emt 0:02:38]} 29. Rcf1 {[%emt 0:02:15]} Rd5 {[%emt 0:00:45][%cal Bd6d5,Bd5e5,Be5e3][%mdl 32]} 30. Qc3 {[%emt 0:00:57]} Re5 {[%emt 0:00:13]} 31. Qc4 {[%emt 0:03:26]} (31. R1f3 $11) 31... Rxe3 $17 {[%emt 0:01:12]} 32. Qxe6 {[%emt 0:01:52]} Rxe6 {[%emt 0:00:04][%mdl 4096] Endgame KRR-KRR} 33. Ra4 {[%emt 0:01:30]} c5 {[%emt 0:00:29]} 34. Rf5 {[%emt 0:01:33]} Rc8 {[%emt 0:01:20]} 35. Rc4 {[%emt 0:00:54]} Rxe2 {[%emt 0:02:12]} 36. Rfxc5 {[%emt 0:00:38]} Rxc5 {[%emt 0:01:06]} 37. Rxc5 {[%emt 0:00:02] KR-KR} g6 {[%emt 0:00:11]} 38. Ra5 {[%emt 0:00:30]} Re6 {[%emt 0:00:06]} 39. Kf2 {[%emt 0:01:02]} Kg7 {[%emt 0:00:09]} 40. Kf3 {[%emt 0:01:10]} Kf6 {[%emt 0:00:20]} 41. Kf4 {[%emt 0:01:16]} Ke7 {[%emt 0:00:31]} 42. Kg5 {[%emt 0:01:26]} Kd7 {[%emt 0:00:14]} (42... Re2 $1 $17) 43. Kf4 {[%emt 0:01:39]} (43. Kh6 $11) 43... Kc7 {[%emt 0:00:09]} (43... f6 $17) 44. Kf3 {[%emt 0:00:30] [#]} (44. Kg5 $1 $11 {keeps the balance.}) 44... Kb6 $1 {[%emt 0:00:28]} 45. Rd5 {[%emt 0:00:13]} Rc6 {[%emt 0:00:33]} 46. Ke4 {[%emt 0:01:43]} Rc3 {[%emt 0:00:53]} 47. Rd7 {[%emt 0:01:18]} (47. Rd6+ $17 Kb5 48. a4+ Ka5 49. Rf6) 47... f5+ $2 {[%emt 0:00:06]} (47... Rxa3 $19 {And now ...f5+ would win.} 48. Rxf7 Rc3) 48. Kd4 {[%emt 0:00:16]} Rxa3 {[%emt 0:01:45]} (48... Rc6 $11) 49. Rd6+ {[%emt 0:00:13]} Kb5 {[%emt 0:00:06] ...Ra4+ is the strong threat.} 50. Rxg6 {[%emt 0:00:33] [#]} Ra4+ {[%emt 0:02:24]} ({Better is} 50... h4 $1 $17) 51. Kc3 $11 {[%emt 0:01:40]} Rg4 {[%emt 0:00:06]} 52. Rg5 {[%mdl 8192]} Rc4+ $2 {[%emt 0:01:14]} (52... Rxg5 {mates} 53. Kc2 Rg4 54. Kd3 a5 55. h3 Rb4 56. Ke2 a4 57. g4 a3 58. Kf3 h4 59. g5 a2 60. g6 a1=Q 61. Kf2 Qd4+ 62. Kf1 Rb2 63. Ke1 Qg1#) 53. Kb3 {[%emt 0:00:19] The position is equal.} Rc5 {[%emt 0:00:07]} 54. Rxh5 {[%emt 0:00:23]} a5 {[%emt 0:00:04][%cal Ba6a5,Ba5a4][%mdl 32]} 55. Rh8 {[%emt 0:00:25]} a4+ {[%emt 0:00:03]} 56. Kb2 {[%emt 0:00:15]} Re5 {[%emt 0:01:11]} 57. Rb8+ {[%emt 0:00:22]} Kc4 {[%emt 0:00:22]} 58. Rc8+ {[%emt 0:00:57]} Kd3 {[%emt 0:00:30]} 59. Ka3 {[%emt 0:00:34]} Re3 {[%emt 0:01:17]} 60. Rg8 {[%emt 0:00:29]} Re4 {[%emt 0:00:13]} 61. Rg7 {[%emt 0:00:25][%mdl 32768] Weighted Error Value: White=0.35/Black=0.28 (precise) . Loss on time!?} 1-0

[Event "French-ch Youth U18 2022"]
[Site "Agen"]
[Date "2022.04.22"]
[Round "7.6"]
[White "Moracchini, Margaux"]
[Black "Tomasi, Elise"]
[Result "1/2-1/2"]
[ECO "C47"]
[WhiteElo "1994"]
[BlackElo "1988"]
[Annotator "TA"]
[PlyCount "69"]
[EventDate "2022.04.17"]
[EventType "swiss"]
[EventCountry "FRA"]
[SourceTitle "playchess.com"]
[Source "ChessBase"]
[SourceQuality "1"]
[TimeControl "5400+30"]

{[%evp 9,69,-31,-33,-33,-38,-55,-11,-9,-16,-25,-16,-11,-8,-27,-33,-25,0,0,0,0,0,0,0,0,0,3,18,0,0,0,18,0,0,0,18,0,0,0,0,0,0,0,0,0,0,0,0,0,0,0,0,0,0,0,0,0,0,0,0,0,12,14]} 1. e4 e5 {[%emt 0:00:26]} 2. Nf3 {[%emt 0:00:27]} Nf6 3. Nc3 Nc6 {[%emt 0:02:18]} 4. d4 {[%emt 0:05:32]} Bb4 5. Bg5 {[%emt 0:08:27]} h6 {[%emt 0:21:48]} 6. Bxf6 {[%emt 0:02:57] C47: Scotch Four Knights and Four Knights with 4 g3.} Qxf6 {[%emt 0:02:26]} 7. dxe5 {[%emt 0:07:07]} Bxc3+ {[%emt 0:05:18]} (7... Nxe5 {with more complications.} 8. Nxe5 Qxe5 9. Qd3 d6) 8. bxc3 {[%emt 0:00:06]} Nxe5 {[%emt 0:00:14] [#]} 9. Nxe5 $146 {[%emt 0:03:06]} ({Predecessor:} 9. Nd4 O-O 10. Qd2 a6 11. a4 Re8 12. Be2 Nc6 13. f3 Qh4+ 14. g3 Qf6 15. O-O {1-0 (32) Arroitajauregi Lekunberri,A-Irulegi Garmendia,J San Sebastian 2007}) 9... Qxe5 {[%emt 0:00:13]} 10. Qd4 {[%emt 0:00:42]} d6 {[%emt 0:08:17]} 11. Bd3 {[%emt 0:09:16]} O-O {[%emt 0:05:46]} 12. O-O {[%emt 0:01:59]} c5 {[%emt 0:05:36]} 13. Qxe5 {[%emt 0:09:58] The position is equal.} dxe5 {[%emt 0:00:15]} 14. Bc4 {[%emt 0:00:09]} Be6 {[%emt 0:12:00]} 15. Bxe6 {[%emt 0:03:32]} fxe6 $11 {[%emt 0:00:02][%mdl 4096] Endgame KRR-KRR} 16. Rfd1 {[%emt 0:02:33]} Rfd8 {[%emt 0:00:38] Against Rd7} 17. Kf1 {[%emt 0:02:58]} Kf7 {[%emt 0:01:09]} 18. Ke2 {[%emt 0:00:51]} Ke7 {[%emt 0:01:00]} 19. Rab1 {[%emt 0:00:59]} b6 {[%emt 0:01:17]} 20. a4 {[%emt 0:03:06]} Rxd1 {[%emt 0:05:32]} 21. Rxd1 {[%emt 0:00:41] KR-KR} Rb8 {[%emt 0:03:42]} 22. c4 {[%emt 0:06:48]} Rd8 {[%emt 0:09:07]} 23. Rxd8 Kxd8 {KP-KP} 24. g3 {[%emt 0:06:40]} Ke7 {[%emt 0:02:36]} 25. Ke3 {[%emt 0:09:16]} Kf6 {[%emt 0:01:44]} 26. Kf3 {[%emt 0:03:03]} g5 {[%emt 0:04:23]} 27. Kg4 {[%emt 0:03:47]} Kg6 {[%emt 0:01:16]} 28. h4 {[%emt 0:02:25]} h5+ {[%emt 0:01:18]} 29. Kh3 {[%emt 0:00:39]} g4+ {[%emt 0:01:13]} 30. Kg2 {[%emt 0:00:04]} Kf6 {[%emt 0:01:15]} 31. f3 {[%emt 0:00:09]} a5 {[%emt 0:00:25]} 32. Kf2 {[%emt 0:00:21]} Kg6 {[%emt 0:00:17]} 33. Ke2 {[%emt 0:01:06]} Kf6 {[%emt 0:00:19]} 34. Ke3 {[%emt 0:00:23]} Kg6 {[%emt 0:00:29]} 35. fxg4 {[%emt 0:01:12] Weighted Error Value: White=0.04 (flawless) /Black=0.08 (flawless)} 1/2-1/2

[Event "French-ch Youth U18 2022"]
[Site "Agen"]
[Date "2022.04.22"]
[Round "7.7"]
[White "Renaudin, Axelle"]
[Black "Bellahcene, Sofia"]
[Result "0-1"]
[ECO "A06"]
[WhiteElo "1591"]
[BlackElo "1813"]
[Annotator "NA RC COMBH"]
[PlyCount "68"]
[EventDate "2022.04.17"]
[EventType "swiss"]
[EventCountry "FRA"]
[SourceTitle "playchess.com"]
[Source "ChessBase"]
[SourceQuality "1"]
[TimeControl "5400+30"]

1. Nf3 {[%emt 0:00:03]} d5 {[%emt 0:00:10]} 2. c4 {[%emt 0:00:04]} e6 {[%emt 0:00:50]} 3. e3 {[%emt 0:00:07]} Nf6 {[%emt 0:00:46]} 4. Nc3 {[%emt 0:00:29]} Bd6 {[%emt 0:02:21]} 5. d4 {[%emt 0:00:59]} b6 {[%emt 0:02:13]} 6. cxd5 {[%emt 0:04:07]} exd5 {[%emt 0:00:14]} 7. Bd3 {[%emt 0:01:10]} O-O {[%emt 0:01:24]} 8. O-O {[%emt 0:00:18]} Bb7 {[%emt 0:02:26]} 9. Qc2 {[%emt 0:03:16]} a6 {[%emt 0:10:30]} 10. Rd1 {[%emt 0:06:29]} Qe7 {[%emt 0:06:39]} 11. Bf1 {[%emt 0:37:25]} Ne4 {[%emt 0:06:36]} 12. g3 {[%emt 0:01:24]} Nd7 {[%emt 0:04:08]} 13. Nxe4 {[%emt 0:02:59]} dxe4 {[%emt 0:01:00]} 14. Nd2 {[%emt 0:00:04]} Nf6 {[%emt 0:06:40]} 15. Nc4 {[%emt 0:02:58]} Bc8 {[%emt 0:05:03]} 16. Nxd6 {[%emt 0:04:55]} Qxd6 {[%emt 0:01:55]} 17. h3 {[%emt 0:01:13]} Re8 {[%emt 0:02:58]} 18. Bd2 {[%emt 0:03:11]} h5 {[%emt 0:01:48]} 19. Rac1 {[%emt 0:02:43]} Ra7 {[%emt 0:08:44]} 20. a3 {[%emt 0:06:07]} h4 {[%emt 0:03:09]} 21. Bb4 {[%emt 0:03:13]} Qd8 {[%emt 0:00:53]} 22. Bg2 {[%emt 0:01:37]} a5 {[%emt 0:01:25]} 23. Be1 {[%emt 0:00:14]} Nh7 {[%emt 0:06:16]} 24. Qe2 {[%emt 0:12:04]} Re6 {[%emt 0:04:33]} 25. Kh2 {[%emt 0:02:35]} Ng5 {[%emt 0:05:20]} 26. gxh4 {[%emt 0:01:47]} Qd6+ {[%emt 0:00:07]} 27. Kh1 {[%emt 0:00:12]} Nf3 {[%emt 0:01:43]} 28. Bxf3 {[%emt 0:00:56]} Ba6 {[%emt 0:01:26]} 29. Qd2 {[%emt 0:01:07]} exf3 {[%emt 0:00:09]} 30. d5 {[%emt 0:00:34]} Rg6 {[%emt 0:00:46]} 31. Rc6 {[%emt 0:00:23]} Qd7 {[%emt 0:01:00]} 32. Rxg6 {[%emt 0:01:12]} Qxh3+ {[%emt 0:00:05]} 33. Kg1 {[%emt 0:00:13]} fxg6 {[%emt 0:00:14]} 34. e4 {[%emt 0:00:41]} Qg2# 0-1

[Event "French-ch Youth U18 2022"]
[Site "Agen"]
[Date "2022.04.22"]
[Round "7.8"]
[White "Lordier, Sophia"]
[Black "Atli, Celine"]
[Result "1-0"]
[ECO "E04"]
[WhiteElo "1725"]
[BlackElo "1431"]
[Annotator "NA RC COMBH"]
[PlyCount "77"]
[EventDate "2022.04.17"]
[EventType "swiss"]
[EventCountry "FRA"]
[SourceTitle "playchess.com"]
[Source "ChessBase"]
[SourceQuality "1"]
[TimeControl "5400+30"]

1. d4 {[%emt 0:00:32]} d5 {[%emt 0:00:07]} 2. c4 {[%emt 0:00:08]} e6 {[%emt 0:00:17]} 3. Nf3 {[%emt 0:00:11]} Nf6 {[%emt 0:00:28]} 4. g3 {[%emt 0:00:18]} dxc4 {[%emt 0:00:55]} 5. Bg2 {[%emt 0:01:38]} Bd7 {[%emt 0:01:19]} 6. O-O {[%emt 0:01:48]} Nc6 {[%emt 0:11:13]} 7. Qc2 {[%emt 0:01:18]} Bd6 {[%emt 0:01:17]} 8. Qxc4 {[%emt 0:05:59]} Qe7 {[%emt 0:02:29]} 9. Nc3 {[%emt 0:02:18]} O-O-O {[%emt 0:07:50]} 10. Nb5 {[%emt 0:08:23]} h6 {[%emt 0:07:33]} 11. Nxd6+ {[%emt 0:01:46]} Qxd6 {[%emt 0:00:29]} 12. Bf4 {[%emt 0:02:13]} Qb4 {[%emt 0:02:32]} 13. Qc2 {[%emt 0:07:53]} g5 {[%emt 0:01:31]} 14. Bd2 {[%emt 0:01:32]} Qd6 {[%emt 0:03:24]} 15. e4 {[%emt 0:03:57]} Ne8 {[%emt 0:13:04]} 16. d5 {[%emt 0:07:45]} exd5 {[%emt 0:00:53]} 17. exd5 {[%emt 0:00:42]} Ne7 {[%emt 0:07:00]} 18. Nd4 {[%emt 0:08:48]} Nxd5 {[%emt 0:02:47]} 19. Rac1 {[%emt 0:04:46]} Nb4 {[%emt 0:06:37]} 20. Qc4 {[%emt 0:14:12]} Nc6 {[%emt 0:06:30]} 21. Nxc6 {[%emt 0:00:22]} Bxc6 {[%emt 0:00:17]} 22. Bb4 {[%emt 0:03:30]} Qe6 {[%emt 0:03:33]} 23. Qxe6+ {[%emt 0:01:48]} fxe6 {[%emt 0:00:05]} 24. Bxc6 {[%emt 0:00:02]} bxc6 {[%emt 0:00:08]} 25. Rxc6 {[%emt 0:00:01]} Nd6 {[%emt 0:01:24]} 26. Rfc1 {[%emt 0:00:22]} Kb8 {[%emt 0:04:44]} 27. Rxc7 {[%emt 0:01:34]} Nf5 {[%emt 0:01:04]} 28. R7c4 {[%emt 0:06:03]} Rc8 {[%emt 0:00:38]} 29. Bc5 {[%emt 0:00:45]} Ka8 {[%emt 0:01:15]} 30. Re4 {[%emt 0:02:04]} Rc6 {[%emt 0:01:05]} 31. b4 {[%emt 0:00:43]} Rhc8 {[%emt 0:00:54]} 32. Rce1 {[%emt 0:00:21]} Re8 {[%emt 0:01:24]} 33. Re5 {[%emt 0:01:05]} Ng7 {[%emt 0:00:09]} 34. Rd1 {[%emt 0:00:06]} Ra6 {[%emt 0:00:51]} 35. Re2 {[%emt 0:01:53]} Nf5 {[%emt 0:01:15]} 36. Rd7 {[%emt 0:00:51]} e5 {[%emt 0:02:26]} 37. Rf7 {[%emt 0:01:26]} Nd6 {[%emt 0:01:41]} 38. Rf6 {[%emt 0:00:15]} Rd8 {[%emt 0:00:49]} 39. b5 {[%emt 0:00:38]} 1-0

[Event "French-ch Youth U18 2022"]
[Site "Agen"]
[Date "2022.04.23"]
[Round "8.1"]
[White "Avanesyan, Davit"]
[Black "Girel, Joseph"]
[Result "0-1"]
[ECO "B40"]
[WhiteElo "2065"]
[BlackElo "2394"]
[Annotator "TA"]
[PlyCount "100"]
[EventDate "2022.04.17"]
[EventType "swiss"]
[EventCountry "FRA"]
[SourceTitle "playchess.com"]
[Source "ChessBase"]
[SourceQuality "1"]
[TimeControl "5400+30"]

{[%evp 16,100,0,0,4,0,0,-119,-114,-118,-122,-108,-113,-148,-143,-147,-147,-142,-129,-133,-154,-152,-133,-161,-145,-145,-142,-167,-122,-114,-136,-126,-97,-152,-127,-154,-147,-175,-139,-140,-145,-148,-145,-341,-327,-502,-509,-523,-492,-455,-488,-820,-306,-358,-349,-308,-335,-325,-316,-316,-319,-319,-333,-345,-328,-588,-686,-651,-603,-431,-462,-29959,-29963,-29957,-7728,-5814,-5695,-29977,-29978,-29976,-29979,-29979,-29979,-29982,-29983,-29985,-29978]} 1. e4 {[%emt 0:00:05]} c5 {[%emt 0:01:00]} 2. Nf3 {[%emt 0:00:07]} e6 {[%emt 0:00:22]} 3. d4 {[%emt 0:00:05]} cxd4 {[%emt 0:00:14]} 4. Nxd4 {[%emt 0:00:03]} Nf6 {[%emt 0:00:20]} 5. Bd3 {[%emt 0:09:26]} Nc6 {[%emt 0:02:08]} 6. Nxc6 {[%emt 0:00:17]} bxc6 {[%emt 0:00:22]} 7. Nc3 {[%emt 0:00:21]} d5 {[%emt 0:00:23]} 8. O-O {[%emt 0:00:14]} Be7 {[%emt 0:00:16]} 9. Qe2 {[%emt 0:02:50]} O-O {[%emt 0:01:09] B40: Sicilian: 2...e6, Unusual lines.} 10. b3 {[%emt 0:01:56]} Nd7 {[%emt 0:03:10][%cal Bf6d7,Bd7c5,Bc5e4,Be4d6,Bd6f5,Bf5d4][%mdl 32] [#] 10...a5 gains popularity.} 11. Ba6 $146 {[%emt 0:15:03]} (11. Na4 $11 {keeps the balance.}) ({Predecessor:} 11. Bb2 Bf6 12. Rad1 g6 13. f4 Bg7 14. e5 c5 15. Nb5 a6 16. Nd6 c4 17. Bxc4 dxc4 18. Qxc4 {1-0 (31) Czarnota,P (2502)-Kanarek,M (2484) Warsaw 2021}) 11... Bxa6 $1 $17 {[%emt 0:05:18] Black is better.} 12. Qxa6 {[%emt 0:00:05]} Bf6 $1 {[%emt 0:00:17]} 13. Bb2 {[%emt 0:01:46] [#]} Nc5 $1 {[%emt 0:01:29][%csl LRa6,LRe4]} 14. Qe2 {[%emt 0:00:18]} Nxe4 {[%emt 0:01:29]} 15. Na4 {[%emt 0:01:00]} Bxb2 {[%emt 0:02:39]} 16. Nxb2 {[%emt 0:00:03]} Qa5 {[%emt 0:01:20]} 17. f3 {[%emt 0:11:20]} Nd6 {[%emt 0:01:56] &Nero is more active.} 18. Nd3 {[%emt 0:03:45]} Nf5 {[%emt 0:02:14]} 19. Qe5 {[%emt 0:04:33]} Rae8 {[%emt 0:03:06]} 20. Qe1 {[%emt 0:06:06]} Qb6+ {[%emt 0:01:47]} 21. Qf2 {[%emt 0:00:12]} e5 {[%emt 0:02:12]} 22. Qxb6 {[%emt 0:01:30]} axb6 {[%emt 0:00:01]} 23. a4 {[%emt 0:00:47]} Nd4 {[%emt 0:01:36]} 24. Nb4 {[%emt 0:05:37]} (24. Ra2 $142) 24... Ra8 {[%emt 0:06:58]} 25. Rae1 {[%emt 0:02:10]} f6 {[%emt 0:02:26]} 26. Rf2 {[%emt 0:06:34]} Rac8 {[%emt 0:01:38]} 27. f4 {[%emt 0:05:04]} e4 {[%emt 0:01:50]} 28. c4 {[%emt 0:03:38]} dxc4 {[%emt 0:11:16]} 29. Rxe4 $2 {[%emt 0:00:16] White does not recover from this.} (29. bxc4 $17 Rfe8 30. Nc2) 29... c5 $19 {[%emt 0:00:15]} (29... cxb3 30. Rxd4 c5 31. Rd3 $17) ({Not} 29... Nxb3 30. Rxc4 Na5 31. Rc3 $17) 30. Nd5 {[%emt 0:01:17]} (30. bxc4 $142 f5 31. Rxd4 cxd4 32. Rc2) 30... cxb3 {[%emt 0:00:30]} 31. Ne7+ {[%emt 0:00:07]} Kf7 {[%emt 0:00:02]} 32. Nxc8 {[%emt 0:00:25]} Rxc8 {[%emt 0:00:01][%mdl 4096] Endgame KRR-KRN} 33. Rd2 {[%emt 0:08:08] [#]} (33. Rf1 $142 f5 34. Re5) 33... Re8 $2 {[%emt 0:05:27]} (33... c4 $1 {[%cal Oc4c3] aiming for ...c3!} 34. Rdxd4 c3) 34. Rexd4 {[%emt 0:02:33]} cxd4 {[%emt 0:00:02] KR-KR} 35. Kf2 {[%emt 0:00:08]} b5 {[%emt 0:02:54]} ({Worse is} 35... Ra8 36. Rxd4 b2 37. Rb4 $17) 36. a5 {[%emt 0:03:53]} Ra8 {[%emt 0:00:18]} 37. Rxd4 {[%emt 0:00:06]} Rxa5 {[%emt 0:00:04]} 38. Rb4 {[%emt 0:00:05]} Ke6 {[%emt 0:00:33]} ({Don't blunder} 38... Ra2+ $2 39. Kf3 $19) 39. Rxb3 {[%emt 0:00:06]} Kd5 {[%emt 0:00:08] And now ...Kc4 would win.} 40. Rd3+ $2 {[%emt 0:00:19]} (40. Rb2 {might work better.}) 40... Kc4 {[%emt 0:00:01]} 41. Rd7 {[%emt 0:00:05]} b4 {[%emt 0:00:14] Hoping for ...b3.} 42. Ke3 {[%emt 0:01:04]} b3 {[%emt 0:00:12] ( -> ...b2)} 43. Rb7 {[%emt 0:06:45]} (43. Kd2 $19 Ra2+ 44. Kc1 Rc2+ 45. Kb1 Rxg2 46. h4) 43... Rb5 {[%emt 0:00:32]} 44. Rc7+ {[%emt 0:00:01]} Rc5 {[%emt 0:00:29]} 45. Rb7 {[%emt 0:00:03]} Kc3 {[%emt 0:00:21]} 46. Rxg7 {[%emt 0:00:04]} b2 {[%emt 0:00:06] Black mates.} 47. Rb7 {[%emt 0:00:03]} Rc4 {[%emt 0:00:05]} 48. Rxb2 {[%emt 0:00:29]} Kxb2 {[%emt 0:00:01]} 49. g4 {[%emt 0:00:06]} Kc3 {[%emt 0:00:16]} 50. h4 {[%emt 0:00:02]} Kb4 {[%emt 0:00:16] Weighted Error Value: White=0.56/Black=0.12 (very precise)} 0-1

[Event "French-ch Youth U18 2022"]
[Site "Agen"]
[Date "2022.04.23"]
[Round "8.2"]
[White "Harutyunyan, Safar"]
[Black "Decuigniere, Tom"]
[Result "1/2-1/2"]
[ECO "B15"]
[WhiteElo "2217"]
[BlackElo "2292"]
[Annotator "TA"]
[PlyCount "83"]
[EventDate "2022.04.17"]
[EventType "swiss"]
[EventCountry "FRA"]
[SourceTitle "playchess.com"]
[Source "ChessBase"]
[SourceQuality "1"]
[TimeControl "5400+30"]

{[%evp 14,83,22,20,29,21,31,26,29,30,35,19,22,16,42,18,18,7,0,0,0,0,0,0,4,0,0,0,0,0,7,0,0,0,15,0,0,0,21,-45,0,8,10,-13,19,-84,-73,-341,-345,-393,-318,-854,-320,-315,-312,-453,-440,-422,-422,-420,-127,-101,0,0,0,0,0,0,0,0,77,74]} 1. e4 {[%emt 0:04:41]} c6 {[%emt 0:00:06]} 2. d4 {[%emt 0:00:33]} d5 {[%emt 0:00:04]} 3. Nc3 {[%emt 0:00:03]} dxe4 {[%emt 0:00:04]} 4. Nxe4 {[%emt 0:00:05]} Nf6 {[%emt 0:00:04]} 5. Nxf6+ {[%emt 0:00:03]} exf6 {[%emt 0:00:04]} 6. c3 {[%emt 0:00:05]} Bd6 {[%emt 0:00:05]} 7. Bd3 {[%emt 0:00:03]} O-O {[%emt 0:00:05]} 8. Qc2 {[%emt 0:00:02] Active counter play!} Re8+ {[%emt 0:00:05] B15: Caro-Kann: 3 Nc3: 3...g6 and 3...dxe4 4 Nxe4 Nf6 5 Nxf6+ exf6.} 9. Ne2 {[%emt 0:00:04]} h5 {[%emt 0:00:05]} 10. O-O {[%emt 0:00:05]} h4 {[%emt 0:00:11] White has an edge.} 11. h3 {[%emt 0:00:05]} Nd7 {[%emt 0:00:06]} 12. Bd2 {[%emt 0:00:05]} Nf8 {[%emt 0:02:05]} 13. Rae1 {[%emt 0:00:30]} Be6 {[%emt 0:08:09]} 14. b3 {[%emt 0:08:42]} Qd7 {[%emt 0:08:05]} 15. f4 {[%emt 0:05:12] Black must now prevent f5.} f5 $1 {[%emt 0:01:24]} 16. c4 {[%emt 0:17:37] [#]} Ng6 $146 {[%emt 0:02:53]} ({Predecessor:} 16... Be7 17. Be3 Bf6 18. Rd1 Bxc4 19. bxc4 Rxe3 20. Bxf5 Qe7 21. Bg4 Re8 22. Rd2 Ng6 {1-0 (38) De Silva,L (2220)-Mkrtchyan,M (2300) Chess.com INT 2022}) 17. Kh1 {[%emt 0:08:04]} Rad8 {[%emt 0:08:13]} 18. a4 {[%emt 0:12:13]} Qc8 {[%emt 0:04:41]} 19. Ba5 {[%emt 0:12:44]} b6 {[%emt 0:01:38]} 20. Bc3 {[%emt 0:00:08]} Re7 {[%emt 0:04:51]} 21. Qb2 {[%emt 0:08:09]} Rc7 {[%emt 0:07:15]} 22. Qd2 {[%emt 0:08:32]} Re7 {[%emt 0:03:24]} 23. Qb2 {[%emt 0:01:11]} Rc7 {[%emt 0:00:28]} 24. Qd2 {[%emt 0:04:36]} Re7 {[%emt 0:06:19]} 25. Bb1 {[%emt 0:00:12]} Rde8 {[%emt 0:06:34]} 26. Ng1 {[%emt 0:05:44]} (26. Nc1 $11) 26... Bd7 {[%emt 0:02:34]} ({Better is} 26... Qb8 $15) 27. Rxe7 $11 {[%emt 0:00:18]} Rxe7 {[%emt 0:00:04]} 28. d5 {[%emt 0:01:38]} c5 {[%emt 0:05:28]} (28... Qa8 {with more complications.} 29. dxc6 Bxc6 30. Bxf5 Re3) 29. Qb2 {[%emt 0:00:27]} (29. Ne2 $11) 29... Nxf4 $17 {[%emt 0:00:21] Threatens to win with ...Qe8.} 30. Rxf4 $2 {[%emt 0:02:16][%mdl 8192]} Bxf4 $19 {[%emt 0:00:04]} 31. Bxg7 {[%emt 0:00:05]} Qe8 {[%emt 0:01:13] aiming for ...Re1.} 32. Bf6 $2 {[%emt 0:01:36]} (32. Bc3 Re3 33. Bc2) 32... Be5 $2 {[%emt 0:08:14]} (32... Re1 {[%cal Oe1g1] ( -> ...Rxg1+!)} 33. Bxh4 Be5 $1 {[%mdl 512]}) 33. Bxe5 {[%emt 0:00:05]} Rxe5 {[%emt 0:00:04]} 34. Nf3 {[%emt 0:00:22] Inhibits Re1+.} (34. Qd2 $142 Re1 35. Qg5+ Kf8 36. Qh6+ Ke7 37. Bc2) 34... Re2 {[%emt 0:02:04]} 35. Qf6 {[%emt 0:00:33]} Qe7 {[%emt 0:01:18]} (35... Re1+ 36. Nxe1 Qxe1+ 37. Kh2 $11) 36. Qh6 {[%emt 0:00:29]} Qe3 {[%emt 0:07:11] Prevents Qf4.} (36... Rf2 $19 {is more deadly. Hoping for ...Rf1+.} 37. Qc1 (37. Bd3 $2 Rxf3 38. gxf3 Qe1+ 39. Kg2 Qg3+ 40. Kf1 Qxf3+ 41. Ke1 Qxd3 $19) 37... f4) 37. Qxh4 $17 {[%emt 0:00:43][%cal Ob1d3]} Rb2 {[%emt 0:01:00]} ({Don't play} 37... Qc1+ $6 38. Kh2 $11) ({Black should play} 37... Qxb3 $17 38. Qd8+ Kg7 39. Qg5+ Kf8 40. Qh6+ Kg8 41. Qg5+ Kf8 42. Qh6+ Ke8 43. Qh8+ Ke7 44. Qh4+ f6 45. Qh7+ Kd8 46. Bxf5 Bxf5 47. Qxf5 Qxa4) 38. Qg3+ $11 {[%emt 0:00:49]} Kf8 {[%emt 0:00:05]} 39. Qd6+ {[%emt 0:00:33]} Kg7 {[%emt 0:03:00]} (39... Qe7 $5 40. Qb8+ Kg7 41. Qg3+ Kh8 $11) 40. Qg3+ {[%emt 0:00:19]} Kf8 {[%emt 0:00:18]} 41. Qd6+ Ke8 {[#]} (41... Qe7 $11 42. Qb8+ Kg7 43. Qg3+ Kh8) 42. Bxf5 $1 {Weighted Error Value: White=0.37/Black=0.34} 1/2-1/2